{"text_format":"1","workbook":"xlsx","n_sheets":4,"sheets":["注意事項","別紙１（単体）","別紙１－②（代理人用（法人）) ","別紙１－②（代理人用（個人）)"],"not_rendered":{"charts":0,"images":0,"macros":1,"external_links":0,"defined_names":4,"comments":3,"pivot_tables":0},"unopened":[],"bounds":{"document_bytes":16777216,"sheet_cells":100000,"rows_first":2000,"rows_last":500,"rows_between":2000,"halvings":0,"cell_chars":16384,"cell_head_chars":4096},"cells_cut":0,"cells_raw":0,"read":"whole","date_system":"1900"}

{"sheet":"注意事項","index":0,"n_rows":19,"n_cols":10,"rows_kept":19,"cut":false,"hidden":false,"merged":[[3,9,3,16],[5,9,5,16]]}
[]
[null,"・別紙１（当初契約）",null,null,null,null,null,null,null,"←ＩＣカードの名義が「代表者」の場合"]
[]
[null,"・別紙１－②（当初契約）（代理人用（法人））",null,null,null,null,null,null,null,"←ＩＣカードの名義が代表者から委任された代理人（法人）の場合\n（年間委任状や当該案件に係る委任状の提出が必要）"]
[]
[null,"・別紙１－②（当初契約）（代理人用（個人））",null,null,null,null,null,null,null,"←ＩＣカードの名義が代表者から委任された代理人（個人）の場合\n（年間委任状や当該案件に係る委任状の提出が必要）"]
[]
[null,"上記いずれかに必要事項を入力後、",null,null,null,null,null,null,null,"※両方に入力すると別紙２に不具合が生じますので、どちらか一方にのみ入力してください"]
[]
[null,"PDFで保存の上、入札金額送信の際、"]
[]
[null,"内訳書と同時に提出してください"]
[]
[]
[null,"＜電子入札案件に「紙参加」する場合＞"]
[null,"　事前に必要事項を記入の上、開札日に持参し、落札者と"]
[null,"なった場合に、契約担当課へ提出してください。"]
[null,"　なお、郵送の場合は、入札書、内訳書とともに同封して"]
[null,"ください。"]

{"sheet":"別紙１（単体）","index":1,"n_rows":41,"n_cols":49,"rows_kept":41,"cut":false,"hidden":false,"merged":[[25,7,26,8],[27,7,28,8],[20,28,24,34],[30,40,31,46],[25,40,26,45],[27,9,28,25],[22,9,23,25],[31,11,31,25],[20,9,21,25],[25,9,26,25],[7,9,7,14],[6,9,6,14],[6,15,6,25],[7,15,7,25],[8,15,8,19],[8,21,8,25],[10,9,10,26],[8,9,8,14],[30,0,34,1],[33,6,33,10],[31,2,33,4],[32,11,32,15],[32,17,32,25],[33,21,33,23],[33,16,33,19],[33,11,33,14],[32,6,32,10],[31,6,31,10],[20,6,23,6],[20,7,21,8],[22,7,23,8],[25,6,28,6],[10,28,11,30],[10,31,11,35],[17,1,18,3],[0,37,0,39],[1,37,1,39],[7,28,8,29],[7,30,8,34],[0,0,0,26],[13,1,13,3],[14,1,14,3],[13,7,13,10],[14,7,14,25],[1,29,2,30],[4,29,5,30],[17,27,18,36],[10,1,10,7]]}
["契約に関する申出書",null,null,null,null,null,null,null,null,null,null,null,null,null,null,null,null,null,null,null,null,null,null,null,null,null,null,"はじめに選択↓",null,null,null,"契約区分",null,null,null,null,null,"入力箇所",null,null,null,null,null,null,"発注機関名","支出負担行為担当者名","代表アドレス","電話"]
[null,null,null,null,null,null,null,null,null,null,null,null,null,null,null,null,null,null,null,null,null,null,null,null,null,null,null,null,null,null,null,null,null,"工事",null,null,null,"選択箇所",null,null,null,null,null,null,"空知調整","空知総合振興局長","sorachi.chosei1@pref.hokkaido.lg.jp","0126-20-0086"]
[null,null,null,null,null,null,null,null,null,null,null,null,null,null,null,null,null,null,null,{"$f":"IF($AD$2=\"\",\"\",\"令和\")","v":""},{"$f":"IF($AF$11<>\"\",TEXT($AF$11,\"e\"),\"\")","v":""},"年",{"$f":"IF($AF$11<>\"\",TEXT($AF$11,\"m\"),\"\")","v":""},"月",{"$f":"IF($AF$11<>\"\",TEXT($AF$11,\"d\"),\"\")","v":""},"日",null,null,null,null,null,null,null,"委託",null,null,null,null,null,null,null,null,null,null,"石狩調整","石狩振興局長","ishikari.chosei1@pref.hokkaido.lg.jp","011-204-5850"]
[null,null,null,null,null,null,null,null,null,null,null,null,null,null,null,null,null,null,null,null,null,null,null,null,null,null,null,"次に選択↓",null,null,null,"発注機関",null,null,null,null,null,null,null,null,null,null,null,null,"後志農振","後志総合振興局長","shiribeshi.nousonshinkou@pref.hokkaido.lg.jp","0136-23-1891"]
[null,{"$f":"IF(AD5=\"\",\"（支出負担行為担当者）\",VLOOKUP(AD5,$AS$2:$AT$16,2,FALSE))&\"　様\"","v":"（支出負担行為担当者）　様"},null,null,null,null,null,null,null,null,null,null,null,null,null,null,null,null,null,null,null,null,null,null,null,null,null,null,null,null,null,null,null,null,null,null,null,null,null,null,null,null,null,null,"胆振農振","胆振総合振興局長","iburi.nousonshinkou1@pref.hokkaido.lg.jp","0143-24-9817"]
[null,null,null,null,null,null,null,null,null,null,null,null,null,null,null,null,null,null,null,null,null,null,null,null,null,null,null,null,null,null,null,null,null,null,null,null,null,null,null,null,null,null,null,null,"日高農振","日高振興局長","hidaka.nousonshinkou@pref.hokkaido.lg.jp","0146-22-9353"]
[null,null,null,null,null,null,null,null,null,"住所",null,null,null,null,null,null,null,null,null,null,null,null,null,null,null,null,null,"最後に入力↓",null,null,null,null,null,null,null,null,null,null,null,null,null,null,null,null,"渡島農振","渡島総合振興局長","oshima.nousonshinkouka@pref.hokkaido.lg.jp","0138-83-7238"]
[null,null,null,null,null,null,null,null,null,"商号又は名称",null,null,null,null,null,null,null,null,null,null,null,null,null,null,null,null,null,null,"開札日",null,null,null,null,null,null,null,null,null,null,null,null,null,null,null,"檜山農振","檜山振興局長","hiyama.nousonshinkou1@pref.hokkaido.lg.jp","0139-52-6601"]
[null,null,null,null,null,null,null,null,null,"代表者役職・氏名",null,null,null,null,null,null,null,null,null,null,null,null,null,null,null,null,null,null,null,null,null,null,null,null,null,null,null,null,null,null,null,null,null,null,"上川調整","上川総合振興局長","kamikawa.chosei1@pref.hokkaido.lg.jp","0166-46-5965"]
[null,null,null,null,null,null,null,null,null,null,null,null,null,null,null,null,null,null,null,null,null,null,null,null,null,null,null,null,null,null,null,null,null,null,null,null,null,null,null,null,null,null,null,null,"留萌農振","留萌振興局長","rumoi.nousonnsinnkou2@pref.hokkaido.lg.jp","0164-42-8495"]
[null,{"$f":"AE8","v":"00:00:00"},null,null,null,null,null,null,null,{"$f":"\"に開札予定の次の\"&IF(AD2=\"工事\",AH2,\"委託業務\")&\"について、落札者となった\"","v":"に開札予定の次の委託業務について、落札者となった"},null,null,null,null,null,null,null,null,null,null,null,null,null,null,null,null,null,null,"申出書作成日",null,null,null,null,null,null,null,null,null,null,null,null,null,null,null,"宗谷農振","宗谷総合振興局長","soya.chosei1@pref.hokkaido.lg.jp","0162-33-2535"]
["場合の契約方法を、次のとおり申し出ます。",null,null,null,null,null,null,null,null,null,null,null,null,null,null,null,null,null,null,null,null,null,null,null,null,null,null,null,null,null,null,null,null,null,null,null,null,null,null,null,null,null,null,null,"オホ調整","オホーツク総合振興局長","okhotsk.chosei1@pref.hokkaido.lg.jp","0152-41-0670"]
[null,null,null,null,null,null,null,null,null,null,null,null,null,null,null,null,null,null,null,null,null,null,null,null,null,null,null,null,null,null,null,null,null,null,null,null,null,null,null,null,null,null,null,null,"十勝調整","十勝総合振興局長","tokachi.chosei1@pref.hokkaido.lg.jp","0155-27-8619"]
["（",{"$f":"IF(AD2=\"工事\",\"工事番号\",\"業務番号\")","v":"業務番号"},null,null,"）",null,"（",null,null,null,null,"）",null,null,null,null,null,null,null,null,null,null,null,null,null,null,null,null,null,null,null,null,null,null,null,null,null,null,null,null,null,null,null,null,"釧路農振","釧路総合振興局長","kushiro.tyosei1@pref.hokkaido.lg.jp","0154-43-9231"]
[null,{"$f":"IF(AD2=\"工事\",\"工事名\",\"業務名\")","v":"業務名"},null,null,null,null,null,null,null,null,null,null,null,null,null,null,null,null,null,null,null,null,null,null,null,null,null,"←案件名",null,null,null,null,null,null,null,null,null,null,null,null,null,null,null,null,"根室農振","根室振興局長","nemuro.nousonshinkou2@pref.hokkaido.lg.jp","0153-24-5720"]
[null,null,null,null,null,null,null,null,null,null,null,null,null,null,null,null,null,null,null,null,null,null,null,null,null,null,null,null,null,null,null,null,null,null,null,null,null,null,null,null,null,null,null,null,"農政部","農政部長","-","-"]
[]
[null,"契約方法\n等の申出",null,null,null,null,null,"紙での契約を希望します。",null,null,null,null,null,null,null,{"$f":"IF(AND($AW$20=TRUE,$AW$21=TRUE),\"←二重チェックされております。\",\"\")","v":""},null,null,null,null,null,null,null,null,null,null,null,"←どちらかにチェックしてください"]
[null,null,null,null,null,null,null,"電子契約を希望します。",null,null,null,null,null,null,null,{"$f":"IF(AND($AW$20=TRUE,$AW$21=TRUE),\"←二重チェックされております。\",\"\")","v":""},null,null,null,null,null,null,null,null,null,null,null,null,null,null,null,null,null,null,null,null,null,null,null,null,"＜ファイル名用＞",null,null,null,null,null,null,null,"チェック"]
[null,null,null,null,null,null,null,"なお、契約書送付先のメールアドレス等は、次のとおりです。",null,null,null,null,null,null,null,null,null,null,null,null,null,null,null,null,null,null,null,null,null,null,null,null,null,null,null,null,null,null,null,null,null,null,null,"発注機関",{"$f":"AD5","v":0},null,null,"紙契約",false]
[null,null,null,null,null,null,"締結\n権限者","氏名",null,null,null,null,null,null,null,null,null,null,null,null,null,null,null,null,null,null,null,null,"・発注者から契約担当→締結権限者の順に署名依頼のメールが届きます。\n・締結権限者のみの記載でも契約締結は可能です。",null,null,null,null,null,null,null,null,null,null,null,null,null,null,"開札日",{"$f":"MONTH(AE8)&\"月\"&DAY(AE8)&\"日\"","v":"1月0日"},null,null,"電子契約",false]
[null,null,null,null,null,null,null,null,null,null,null,null,null,null,null,null,null,null,null,null,null,null,null,null,null,null,null,null,null,null,null,null,null,null,null,null,null,null,null,null,null,null,null,"整理番号",{"$f":"H14","v":0}]
[null,null,null,null,null,null,null,"メール\nアドレス",null,null,null,null,null,null,null,null,null,null,null,null,null,null,null,null,null,null,null,null,null,null,null,null,null,null,null,null,null,null,null,null,null,null,null,"入札参加者名",{"$f":"P8","v":0}]
[null,null,null,null,null,null,null,null,null,null,null,null,null,null,null,null,null,null,null,null,null,null,null,null,null,null,null,null,null,null,null,null,null,null,null,null,null,null,null,null,null,null,null,"タイトル","契約に関する申出書"]
[]
[null,null,null,null,null,null,"契約担当者","氏名"]
[]
[null,null,null,null,null,null,null,"メール\nアドレス"]
[]
[]
["連絡先"]
[null,null,"担当者",null,null,null,"（所属）"]
[null,null,null,null,null,null,"（職・氏名）",null,null,null,null,null,null,null,null,null,"・"]
[null,null,null,null,null,null,"（電話番号）",null,null,null,null,null,null,null,null,"－",null,null,null,null,"－"]
[]
[]
["（留意事項）"]
[null,"※",{"$f":"\"この申出書は、入札金額等の送信時に、\"&IF(AD2=\"工事\",\"工事\",\"委託\")&\"費内訳書と併せて提出してください。\"","v":"この申出書は、入札金額等の送信時に、委託費内訳書と併せて提出してください。"}]
[null,null,"なお、添付漏れの場合でも、入札書が無効となることはありませんが、落札者の決定後、"]
[null,null,"速やかに、契約締結手続きを行う必要があるため、忘れずに提出してください。"]
[null,"※","紙参加の場合は、必要事項を記入の上、開札日に持参してください。"]

{"sheet":"別紙１－②（代理人用（法人）) ","index":2,"n_rows":44,"n_cols":49,"rows_kept":44,"cut":false,"hidden":false,"merged":[[16,1,16,3],[17,1,17,3],[10,8,10,14],[0,0,0,26],[0,37,0,39],[1,29,2,30],[1,37,1,39],[4,29,5,30],[6,8,6,14],[6,15,6,25],[7,8,7,14],[7,15,7,25],[8,8,8,14],[8,15,8,19],[8,21,8,25],[9,15,9,25],[7,28,8,29],[7,30,8,34],[11,21,11,25],[13,1,13,7],[13,8,13,26],[10,15,10,25],[11,15,11,19],[10,28,11,30],[10,31,11,35],[20,1,21,3],[23,6,26,6],[23,7,24,8],[25,7,26,8],[28,6,31,6],[28,7,29,8],[30,7,31,8],[33,0,37,1],[34,2,36,4],[34,5,34,9],[34,11,34,25],[35,5,35,9],[35,11,35,15],[35,17,35,25],[36,5,36,9],[36,11,36,14],[36,16,36,19],[36,21,36,23],[33,40,34,45],[22,28,26,34],[19,27,20,35],[28,40,29,45],[26,40,27,45],[30,9,31,25],[17,7,17,25],[16,7,16,10],[28,9,29,25],[23,9,24,25],[25,9,26,25]]}
["契約に関する申出書",null,null,null,null,null,null,null,null,null,null,null,null,null,null,null,null,null,null,null,null,null,null,null,null,null,null,"はじめに選択↓",null,null,null,"契約区分",null,null,null,null,null,"入力箇所",null,null,null,null,null,null,{"$f":"'別紙１（単体）'!AS1","v":"発注機関名"},{"$f":"'別紙１（単体）'!AT1","v":"支出負担行為担当者名"},{"$f":"'別紙１（単体）'!AU1","v":"代表アドレス"},{"$f":"'別紙１（単体）'!AV1","v":"電話"}]
[null,null,null,null,null,null,null,null,null,null,null,null,null,null,null,null,null,null,null,null,null,null,null,null,null,null,null,null,null,null,null,null,null,"工事",null,null,null,"選択箇所",null,null,null,null,null,null,{"$f":"'別紙１（単体）'!AS2","v":"空知調整"},{"$f":"'別紙１（単体）'!AT2","v":"空知総合振興局長"},{"$f":"'別紙１（単体）'!AU2","v":"sorachi.chosei1@pref.hokkaido.lg.jp"},{"$f":"'別紙１（単体）'!AV2","v":"0126-20-0086"}]
[null,null,null,null,null,null,null,null,null,null,null,null,null,null,null,null,null,null,null,{"$f":"IF($AD$2=\"\",\"\",\"令和\")","v":""},{"$f":"IF($AF$11<>\"\",TEXT($AF$11,\"e\"),\"\")","v":""},"年",{"$f":"IF($AF$11<>\"\",TEXT($AF$11,\"m\"),\"\")","v":""},"月",{"$f":"IF($AF$11<>\"\",TEXT($AF$11,\"d\"),\"\")","v":""},"日",null,null,null,null,null,null,null,"委託",null,null,null,null,null,null,null,null,null,null,{"$f":"'別紙１（単体）'!AS3","v":"石狩調整"},{"$f":"'別紙１（単体）'!AT3","v":"石狩振興局長"},{"$f":"'別紙１（単体）'!AU3","v":"ishikari.chosei1@pref.hokkaido.lg.jp"},{"$f":"'別紙１（単体）'!AV3","v":"011-204-5850"}]
[null,null,null,null,null,null,null,null,null,null,null,null,null,null,null,null,null,null,null,null,null,null,null,null,null,null,null,"次に選択↓",null,null,null,"発注機関",null,null,null,null,null,null,null,null,null,null,null,null,{"$f":"'別紙１（単体）'!AS4","v":"後志農振"},{"$f":"'別紙１（単体）'!AT4","v":"後志総合振興局長"},{"$f":"'別紙１（単体）'!AU4","v":"shiribeshi.nousonshinkou@pref.hokkaido.lg.jp"},{"$f":"'別紙１（単体）'!AV4","v":"0136-23-1891"}]
[null,{"$f":"IF(AD5=\"\",\"（支出負担行為担当者）\",VLOOKUP(AD5,$AS$2:$AT$16,2,FALSE))&\"　様\"","v":"（支出負担行為担当者）　様"},null,null,null,null,null,null,null,null,null,null,null,null,null,null,null,null,null,null,null,null,null,null,null,null,null,null,null,null,null,null,null,null,null,null,null,null,null,null,null,null,null,null,{"$f":"'別紙１（単体）'!AS5","v":"胆振農振"},{"$f":"'別紙１（単体）'!AT5","v":"胆振総合振興局長"},{"$f":"'別紙１（単体）'!AU5","v":"iburi.nousonshinkou1@pref.hokkaido.lg.jp"},{"$f":"'別紙１（単体）'!AV5","v":"0143-24-9817"}]
[null,null,null,null,null,null,null,null,null,null,null,null,null,null,null,null,null,null,null,null,null,null,null,null,null,null,null,null,null,null,null,null,null,null,null,null,null,null,null,null,null,null,null,null,{"$f":"'別紙１（単体）'!AS6","v":"日高農振"},{"$f":"'別紙１（単体）'!AT6","v":"日高振興局長"},{"$f":"'別紙１（単体）'!AU6","v":"hidaka.nousonshinkou@pref.hokkaido.lg.jp"},{"$f":"'別紙１（単体）'!AV6","v":"0146-22-9353"}]
[null,null,null,null,null,null,null,null,"住所",null,null,null,null,null,null,null,null,null,null,null,null,null,null,null,null,null,null,"最後に入力↓",null,null,null,null,null,null,null,null,null,null,null,null,null,null,null,null,{"$f":"'別紙１（単体）'!AS7","v":"渡島農振"},{"$f":"'別紙１（単体）'!AT7","v":"渡島総合振興局長"},{"$f":"'別紙１（単体）'!AU7","v":"oshima.nousonshinkouka@pref.hokkaido.lg.jp"},{"$f":"'別紙１（単体）'!AV7","v":"0138-83-7238"}]
[null,null,null,null,null,null,null,null,"商号又は名称",null,null,null,null,null,null,null,null,null,null,null,null,null,null,null,null,null,null,null,"開札日",null,null,null,null,null,null,null,null,null,null,null,null,null,null,null,{"$f":"'別紙１（単体）'!AS8","v":"檜山農振"},{"$f":"'別紙１（単体）'!AT8","v":"檜山振興局長"},{"$f":"'別紙１（単体）'!AU8","v":"hiyama.nousonshinkou1@pref.hokkaido.lg.jp"},{"$f":"'別紙１（単体）'!AV8","v":"0139-52-6601"}]
[null,null,null,null,null,null,null,null,"代表者役職・氏名",null,null,null,null,null,null,null,null,null,null,null,null,null,null,null,null,null,null,null,null,null,null,null,null,null,null,null,null,null,null,null,null,null,null,null,{"$f":"'別紙１（単体）'!AS9","v":"上川調整"},{"$f":"'別紙１（単体）'!AT9","v":"上川総合振興局長"},{"$f":"'別紙１（単体）'!AU9","v":"kamikawa.chosei1@pref.hokkaido.lg.jp"},{"$f":"'別紙１（単体）'!AV9","v":"0166-46-5965"}]
[null,null,null,null,null,null,null,"代理人","住所",null,null,null,null,null,null,null,null,null,null,null,null,null,null,null,null,null,null,null,null,null,null,null,null,null,null,null,null,null,null,null,null,null,null,null,{"$f":"'別紙１（単体）'!AS10","v":"留萌農振"},{"$f":"'別紙１（単体）'!AT10","v":"留萌振興局長"},{"$f":"'別紙１（単体）'!AU10","v":"rumoi.nousonnsinnkou2@pref.hokkaido.lg.jp"},{"$f":"'別紙１（単体）'!AV10","v":"0164-42-8495"}]
[null,null,null,null,null,null,null,null,"商号又は名称",null,null,null,null,null,null,null,null,null,null,null,null,null,null,null,null,null,null,null,"申出書作成日",null,null,null,null,null,null,null,null,null,null,null,null,null,null,null,{"$f":"'別紙１（単体）'!AS11","v":"宗谷農振"},{"$f":"'別紙１（単体）'!AT11","v":"宗谷総合振興局長"},{"$f":"'別紙１（単体）'!AU11","v":"soya.chosei1@pref.hokkaido.lg.jp"},{"$f":"'別紙１（単体）'!AV11","v":"0162-33-2535"}]
[null,null,null,null,null,null,null,null,"代表者役職・氏名",null,null,null,null,null,null,null,null,null,null,null,null,null,null,null,null,null,null,null,null,null,null,null,null,null,null,null,null,null,null,null,null,null,null,null,{"$f":"'別紙１（単体）'!AS12","v":"オホ調整"},{"$f":"'別紙１（単体）'!AT12","v":"オホーツク総合振興局長"},{"$f":"'別紙１（単体）'!AU12","v":"okhotsk.chosei1@pref.hokkaido.lg.jp"},{"$f":"'別紙１（単体）'!AV12","v":"0152-41-0670"}]
[null,null,null,null,null,null,null,null,null,null,null,null,null,null,null,null,null,null,null,null,null,null,null,null,null,null,null,null,null,null,null,null,null,null,null,null,null,null,null,null,null,null,null,null,{"$f":"'別紙１（単体）'!AS13","v":"十勝調整"},{"$f":"'別紙１（単体）'!AT13","v":"十勝総合振興局長"},{"$f":"'別紙１（単体）'!AU13","v":"tokachi.chosei1@pref.hokkaido.lg.jp"},{"$f":"'別紙１（単体）'!AV13","v":"0155-27-8619"}]
[null,{"$f":"AE8","v":"00:00:00"},null,null,null,null,null,null,{"$f":"\"に開札予定の次の\"&IF(AD2=\"工事\",AH2,\"委託業務\")&\"について、落札者となった\"","v":"に開札予定の次の委託業務について、落札者となった"},null,null,null,null,null,null,null,null,null,null,null,null,null,null,null,null,null,null,null,null,null,null,null,null,null,null,null,null,null,null,null,null,null,null,null,{"$f":"'別紙１（単体）'!AS14","v":"釧路農振"},{"$f":"'別紙１（単体）'!AT14","v":"釧路総合振興局長"},{"$f":"'別紙１（単体）'!AU14","v":"kushiro.tyosei1@pref.hokkaido.lg.jp"},{"$f":"'別紙１（単体）'!AV14","v":"0154-43-9231"}]
["場合の契約方法を、次のとおり申し出ます。",null,null,null,null,null,null,null,null,null,null,null,null,null,null,null,null,null,null,null,null,null,null,null,null,null,null,null,null,null,null,null,null,null,null,null,null,null,null,null,null,null,null,null,{"$f":"'別紙１（単体）'!AS15","v":"根室農振"},{"$f":"'別紙１（単体）'!AT15","v":"根室振興局長"},{"$f":"'別紙１（単体）'!AU15","v":"nemuro.nousonshinkou2@pref.hokkaido.lg.jp"},{"$f":"'別紙１（単体）'!AV15","v":"0153-24-5720"}]
[null,null,null,null,null,null,null,null,null,null,null,null,null,null,null,null,null,null,null,null,null,null,null,null,null,null,null,null,null,null,null,null,null,null,null,null,null,null,null,null,null,null,null,null,"農政部","農政部長","-","-"]
["（",{"$f":"IF(AD2=\"工事\",\"工事番号\",\"業務番号\")","v":"業務番号"},null,null,"）","（",null,null,null,null,null,"）",null,null,null,null,null,null,null,null,null,null,null,null,null,null,null,"←案件名"]
[null,{"$f":"IF(AD2=\"工事\",\"工事名\",\"業務名\")","v":"業務名"}]
[null,null,null,null,null,null,null,null,null,null,null,null,null,null,null,null,null,null,null,null,null,null,null,null,null,null,null,null,null,null,null,null,null,null,null,null,null,null,null,null,"＜ファイル名用＞",null,null,null,null,null,null,null,"チェック"]
[null,null,null,null,null,null,null,null,null,null,null,null,null,null,null,null,null,null,null,null,null,null,null,null,null,null,null,"←どちらかにチェックしてください",null,null,null,null,null,null,null,null,null,null,null,null,null,null,null,"発注機関",{"$f":"AD5","v":0},null,null,"紙契約",false]
[null,"契約方法\n等の申出",null,null,null,null,null,"紙での契約を希望します。",null,null,null,null,null,null,null,{"$f":"IF(AND($AW$20=TRUE,$AW$21=TRUE),\"←二重チェックされております。\",\"\")","v":""},null,null,null,null,null,null,null,null,null,null,null,null,null,null,null,null,null,null,null,null,null,null,null,null,null,null,null,"開札日",{"$f":"MONTH(AE8)&\"月\"&DAY(AE8)&\"日\"","v":"1月0日"},null,null,"電子契約",false]
[null,null,null,null,null,null,null,"電子契約を希望します。",null,null,null,null,null,null,null,{"$f":"IF(AND($AW$20=TRUE,$AW$21=TRUE),\"←二重チェックされております。\",\"\")","v":""},null,null,null,null,null,null,null,null,null,null,null,null,null,null,null,null,null,null,null,null,null,null,null,null,null,null,null,"整理番号",{"$f":"H17","v":0}]
[null,null,null,null,null,null,null,"なお、契約書送付先のメールアドレス等は、次のとおりです。",null,null,null,null,null,null,null,null,null,null,null,null,null,null,null,null,null,null,null,null,"・発注者から契約担当→締結権限者の順に署名依頼のメールが届きます。\n・締結権限者のみの記載でも契約締結は可能です。",null,null,null,null,null,null,null,null,null,null,null,null,null,null,"入札参加者名",{"$f":"P8","v":0}]
[null,null,null,null,null,null,"締結\n権限者","氏名",null,null,null,null,null,null,null,null,null,null,null,null,null,null,null,null,null,null,null,null,null,null,null,null,null,null,null,null,null,null,null,null,null,null,null,"タイトル","契約に関する申出書"]
[]
[null,null,null,null,null,null,null,"メール\nアドレス"]
[]
[]
[null,null,null,null,null,null,"契約担当者","氏名"]
[]
[null,null,null,null,null,null,null,"メール\nアドレス"]
[]
[]
["連絡先"]
[null,null,"担当者",null,null,"（所属）"]
[null,null,null,null,null,"（職・氏名）",null,null,null,null,null,null,null,null,null,null,"・"]
[null,null,null,null,null,"（電話番号）",null,null,null,null,null,null,null,null,null,"－",null,null,null,null,"－"]
[]
[]
["（留意事項）"]
[null,"※",{"$f":"\"この申出書は、入札金額等の送信時に、\"&IF(AD2=\"工事\",\"工事\",\"委託\")&\"費内訳書と併せて提出してください。\"","v":"この申出書は、入札金額等の送信時に、委託費内訳書と併せて提出してください。"}]
[null,null,"なお、添付漏れの場合でも、入札書が無効となることはありませんが、落札者の決定後、"]
[null,null,"速やかに、契約締結手続きを行う必要があるため、忘れずに提出してください。"]
[null,"※","紙参加の場合は、必要事項を記入の上、開札日に持参してください。"]

{"sheet":"別紙１－②（代理人用（個人）)","index":3,"n_rows":44,"n_cols":49,"rows_kept":44,"cut":false,"hidden":false,"merged":[[36,16,36,19],[36,21,36,23],[33,0,37,1],[33,40,34,45],[34,2,36,4],[34,5,34,9],[34,11,34,25],[35,5,35,9],[35,11,35,15],[35,17,35,25],[36,5,36,9],[36,11,36,14],[26,40,27,45],[28,6,31,6],[28,7,29,8],[28,9,29,25],[28,40,29,45],[30,7,31,8],[30,9,31,25],[17,1,17,3],[17,7,17,25],[19,27,20,35],[20,1,21,3],[22,28,26,34],[23,6,26,6],[23,7,24,8],[23,9,24,25],[25,7,26,8],[25,9,26,25],[13,1,13,7],[13,8,13,26],[16,1,16,3],[16,7,16,10],[10,15,10,19],[10,21,10,25],[0,37,0,39],[1,29,2,30],[1,37,1,39],[4,29,5,30],[7,28,8,29],[7,30,8,34],[10,28,11,30],[10,31,11,35],[6,8,6,14],[6,15,6,25],[0,0,0,26],[7,8,7,14],[7,15,7,25],[8,8,8,14],[8,15,8,19],[8,21,8,25],[9,15,9,25]]}
["契約に関する申出書",null,null,null,null,null,null,null,null,null,null,null,null,null,null,null,null,null,null,null,null,null,null,null,null,null,null,"はじめに選択↓",null,null,null,"契約区分",null,null,null,null,null,"入力箇所",null,null,null,null,null,null,"発注機関名","支出負担行為担当者名","代表アドレス","電話"]
[null,null,null,null,null,null,null,null,null,null,null,null,null,null,null,null,null,null,null,null,null,null,null,null,null,null,null,null,null,null,null,null,null,"工事",null,null,null,"選択箇所",null,null,null,null,null,null,{"$f":"'別紙１（単体）'!AS2","v":"空知調整"},{"$f":"'別紙１（単体）'!AT2","v":"空知総合振興局長"},{"$f":"'別紙１（単体）'!AU2","v":"sorachi.chosei1@pref.hokkaido.lg.jp"},{"$f":"'別紙１（単体）'!AV2","v":"0126-20-0086"}]
[null,null,null,null,null,null,null,null,null,null,null,null,null,null,null,null,null,null,null,{"$f":"IF($AD$2=\"\",\"\",\"令和\")","v":""},{"$f":"IF($AF$11<>\"\",TEXT($AF$11,\"e\"),\"\")","v":""},"年",{"$f":"IF($AF$11<>\"\",TEXT($AF$11,\"m\"),\"\")","v":""},"月",{"$f":"IF($AF$11<>\"\",TEXT($AF$11,\"d\"),\"\")","v":""},"日",null,null,null,null,null,null,null,"委託",null,null,null,null,null,null,null,null,null,null,{"$f":"'別紙１（単体）'!AS3","v":"石狩調整"},{"$f":"'別紙１（単体）'!AT3","v":"石狩振興局長"},{"$f":"'別紙１（単体）'!AU3","v":"ishikari.chosei1@pref.hokkaido.lg.jp"},{"$f":"'別紙１（単体）'!AV3","v":"011-204-5850"}]
[null,null,null,null,null,null,null,null,null,null,null,null,null,null,null,null,null,null,null,null,null,null,null,null,null,null,null,"次に選択↓",null,null,null,"発注機関",null,null,null,null,null,null,null,null,null,null,null,null,{"$f":"'別紙１（単体）'!AS4","v":"後志農振"},{"$f":"'別紙１（単体）'!AT4","v":"後志総合振興局長"},{"$f":"'別紙１（単体）'!AU4","v":"shiribeshi.nousonshinkou@pref.hokkaido.lg.jp"},{"$f":"'別紙１（単体）'!AV4","v":"0136-23-1891"}]
[null,{"$f":"IF(AD5=\"\",\"（支出負担行為担当者）\",VLOOKUP(AD5,$AS$2:$AT$16,2,FALSE))&\"　様\"","v":"（支出負担行為担当者）　様"},null,null,null,null,null,null,null,null,null,null,null,null,null,null,null,null,null,null,null,null,null,null,null,null,null,null,null,null,null,null,null,null,null,null,null,null,null,null,null,null,null,null,{"$f":"'別紙１（単体）'!AS5","v":"胆振農振"},{"$f":"'別紙１（単体）'!AT5","v":"胆振総合振興局長"},{"$f":"'別紙１（単体）'!AU5","v":"iburi.nousonshinkou1@pref.hokkaido.lg.jp"},{"$f":"'別紙１（単体）'!AV5","v":"0143-24-9817"}]
[null,null,null,null,null,null,null,null,null,null,null,null,null,null,null,null,null,null,null,null,null,null,null,null,null,null,null,null,null,null,null,null,null,null,null,null,null,null,null,null,null,null,null,null,{"$f":"'別紙１（単体）'!AS6","v":"日高農振"},{"$f":"'別紙１（単体）'!AT6","v":"日高振興局長"},{"$f":"'別紙１（単体）'!AU6","v":"hidaka.nousonshinkou@pref.hokkaido.lg.jp"},{"$f":"'別紙１（単体）'!AV6","v":"0146-22-9353"}]
[null,null,null,null,null,null,null,null,"住所",null,null,null,null,null,null,null,null,null,null,null,null,null,null,null,null,null,null,"最後に入力↓",null,null,null,null,null,null,null,null,null,null,null,null,null,null,null,null,{"$f":"'別紙１（単体）'!AS7","v":"渡島農振"},{"$f":"'別紙１（単体）'!AT7","v":"渡島総合振興局長"},{"$f":"'別紙１（単体）'!AU7","v":"oshima.nousonshinkouka@pref.hokkaido.lg.jp"},{"$f":"'別紙１（単体）'!AV7","v":"0138-83-7238"}]
[null,null,null,null,null,null,null,null,"商号又は名称",null,null,null,null,null,null,null,null,null,null,null,null,null,null,null,null,null,null,null,"開札日",null,null,null,null,null,null,null,null,null,null,null,null,null,null,null,{"$f":"'別紙１（単体）'!AS8","v":"檜山農振"},{"$f":"'別紙１（単体）'!AT8","v":"檜山振興局長"},{"$f":"'別紙１（単体）'!AU8","v":"hiyama.nousonshinkou1@pref.hokkaido.lg.jp"},{"$f":"'別紙１（単体）'!AV8","v":"0139-52-6601"}]
[null,null,null,null,null,null,null,null,"代表者役職・氏名",null,null,null,null,null,null,null,null,null,null,null,null,null,null,null,null,null,null,null,null,null,null,null,null,null,null,null,null,null,null,null,null,null,null,null,{"$f":"'別紙１（単体）'!AS9","v":"上川調整"},{"$f":"'別紙１（単体）'!AT9","v":"上川総合振興局長"},{"$f":"'別紙１（単体）'!AU9","v":"kamikawa.chosei1@pref.hokkaido.lg.jp"},{"$f":"'別紙１（単体）'!AV9","v":"0166-46-5965"}]
[null,null,null,null,null,null,null,"代理人","住所",null,null,null,null,null,null,null,null,null,null,null,null,null,null,null,null,null,null,null,null,null,null,null,null,null,null,null,null,null,null,null,null,null,null,null,{"$f":"'別紙１（単体）'!AS10","v":"留萌農振"},{"$f":"'別紙１（単体）'!AT10","v":"留萌振興局長"},{"$f":"'別紙１（単体）'!AU10","v":"rumoi.nousonnsinnkou2@pref.hokkaido.lg.jp"},{"$f":"'別紙１（単体）'!AV10","v":"0164-42-8495"}]
[null,null,null,null,null,null,null,null,"氏名",null,null,null,null,null,null,null,null,null,null,null,null,null,null,null,null,null,null,null,"申出書作成日",null,null,null,null,null,null,null,null,null,null,null,null,null,null,null,{"$f":"'別紙１（単体）'!AS11","v":"宗谷農振"},{"$f":"'別紙１（単体）'!AT11","v":"宗谷総合振興局長"},{"$f":"'別紙１（単体）'!AU11","v":"soya.chosei1@pref.hokkaido.lg.jp"},{"$f":"'別紙１（単体）'!AV11","v":"0162-33-2535"}]
[null,null,null,null,null,null,null,null,null,null,null,null,null,null,null,null,null,null,null,null,null,null,null,null,null,null,null,null,null,null,null,null,null,null,null,null,null,null,null,null,null,null,null,null,{"$f":"'別紙１（単体）'!AS12","v":"オホ調整"},{"$f":"'別紙１（単体）'!AT12","v":"オホーツク総合振興局長"},{"$f":"'別紙１（単体）'!AU12","v":"okhotsk.chosei1@pref.hokkaido.lg.jp"},{"$f":"'別紙１（単体）'!AV12","v":"0152-41-0670"}]
[null,null,null,null,null,null,null,null,null,null,null,null,null,null,null,null,null,null,null,null,null,null,null,null,null,null,null,null,null,null,null,null,null,null,null,null,null,null,null,null,null,null,null,null,{"$f":"'別紙１（単体）'!AS13","v":"十勝調整"},{"$f":"'別紙１（単体）'!AT13","v":"十勝総合振興局長"},{"$f":"'別紙１（単体）'!AU13","v":"tokachi.chosei1@pref.hokkaido.lg.jp"},{"$f":"'別紙１（単体）'!AV13","v":"0155-27-8619"}]
[null,{"$f":"AE8","v":"00:00:00"},null,null,null,null,null,null,{"$f":"\"に開札予定の次の\"&IF(AD2=\"工事\",AH2,\"委託業務\")&\"について、落札者となった\"","v":"に開札予定の次の委託業務について、落札者となった"},null,null,null,null,null,null,null,null,null,null,null,null,null,null,null,null,null,null,null,null,null,null,null,null,null,null,null,null,null,null,null,null,null,null,null,{"$f":"'別紙１（単体）'!AS14","v":"釧路農振"},{"$f":"'別紙１（単体）'!AT14","v":"釧路総合振興局長"},{"$f":"'別紙１（単体）'!AU14","v":"kushiro.tyosei1@pref.hokkaido.lg.jp"},{"$f":"'別紙１（単体）'!AV14","v":"0154-43-9231"}]
["場合の契約方法を、次のとおり申し出ます。",null,null,null,null,null,null,null,null,null,null,null,null,null,null,null,null,null,null,null,null,null,null,null,null,null,null,null,null,null,null,null,null,null,null,null,null,null,null,null,null,null,null,null,{"$f":"'別紙１（単体）'!AS15","v":"根室農振"},{"$f":"'別紙１（単体）'!AT15","v":"根室振興局長"},{"$f":"'別紙１（単体）'!AU15","v":"nemuro.nousonshinkou2@pref.hokkaido.lg.jp"},{"$f":"'別紙１（単体）'!AV15","v":"0153-24-5720"}]
[null,null,null,null,null,null,null,null,null,null,null,null,null,null,null,null,null,null,null,null,null,null,null,null,null,null,null,null,null,null,null,null,null,null,null,null,null,null,null,null,null,null,null,null,"農政部","農政部長","-","-"]
["（",{"$f":"IF(AD2=\"工事\",\"工事番号\",\"業務番号\")","v":"業務番号"},null,null,"）","（",null,null,null,null,null,"）",null,null,null,null,null,null,null,null,null,null,null,null,null,null,null,"←案件名"]
[null,{"$f":"IF(AD2=\"工事\",\"工事名\",\"業務名\")","v":"業務名"}]
[null,null,null,null,null,null,null,null,null,null,null,null,null,null,null,null,null,null,null,null,null,null,null,null,null,null,null,null,null,null,null,null,null,null,null,null,null,null,null,null,"＜ファイル名用＞",null,null,null,null,null,null,null,"チェック"]
[null,null,null,null,null,null,null,null,null,null,null,null,null,null,null,null,null,null,null,null,null,null,null,null,null,null,null,"←どちらかにチェックしてください",null,null,null,null,null,null,null,null,null,null,null,null,null,null,null,"発注機関",{"$f":"AD5","v":0},null,null,"紙契約",false]
[null,"契約方法\n等の申出",null,null,null,null,null,"紙での契約を希望します。",null,null,null,null,null,null,null,{"$f":"IF(AND($AW$20=TRUE,$AW$21=TRUE),\"←二重チェックされております。\",\"\")","v":""},null,null,null,null,null,null,null,null,null,null,null,null,null,null,null,null,null,null,null,null,null,null,null,null,null,null,null,"開札日",{"$f":"MONTH(AE8)&\"月\"&DAY(AE8)&\"日\"","v":"1月0日"},null,null,"電子契約",false]
[null,null,null,null,null,null,null,"電子契約を希望します。",null,null,null,null,null,null,null,{"$f":"IF(AND($AW$20=TRUE,$AW$21=TRUE),\"←二重チェックされております。\",\"\")","v":""},null,null,null,null,null,null,null,null,null,null,null,null,null,null,null,null,null,null,null,null,null,null,null,null,null,null,null,"整理番号",{"$f":"H17","v":0}]
[null,null,null,null,null,null,null,"なお、契約書送付先のメールアドレス等は、次のとおりです。",null,null,null,null,null,null,null,null,null,null,null,null,null,null,null,null,null,null,null,null,"・発注者から契約担当→締結権限者の順に署名依頼のメールが届きます。\n・締結権限者のみの記載でも契約締結は可能です。",null,null,null,null,null,null,null,null,null,null,null,null,null,null,"入札参加者名",{"$f":"P8","v":0}]
[null,null,null,null,null,null,"締結\n権限者","氏名",null,null,null,null,null,null,null,null,null,null,null,null,null,null,null,null,null,null,null,null,null,null,null,null,null,null,null,null,null,null,null,null,null,null,null,"タイトル","契約に関する申出書"]
[]
[null,null,null,null,null,null,null,"メール\nアドレス"]
[]
[]
[null,null,null,null,null,null,"契約担当者","氏名"]
[]
[null,null,null,null,null,null,null,"メール\nアドレス"]
[]
[]
["連絡先"]
[null,null,"担当者",null,null,"（所属）"]
[null,null,null,null,null,"（職・氏名）",null,null,null,null,null,null,null,null,null,null,"・"]
[null,null,null,null,null,"（電話番号）",null,null,null,null,null,null,null,null,null,"－",null,null,null,null,"－"]
[]
[]
["（留意事項）"]
[null,"※",{"$f":"\"この申出書は、入札金額等の送信時に、\"&IF(AD2=\"工事\",\"工事\",\"委託\")&\"費内訳書と併せて提出してください。\"","v":"この申出書は、入札金額等の送信時に、委託費内訳書と併せて提出してください。"}]
[null,null,"なお、添付漏れの場合でも、入札書が無効となることはありませんが、落札者の決定後、"]
[null,null,"速やかに、契約締結手続きを行う必要があるため、忘れずに提出してください。"]
[null,"※","紙参加の場合は、必要事項を記入の上、開札日に持参してください。"]